bitfinex/quotes_SOLUSD_20251127
["timestamp","ask_amount","ask_price","bid_price","bid_amount"]
[1764242178028,2.83736233,142.22,142.17,26.74513854]
[1764242178232,0.71,142.21,142.17,26.74513854]
[1764242179934,2.83736233,142.21,142.17,24.61777621]
[1764242180225,2.83736233,142.21,142.17,5.80111996]
[1764242180226,2.12736233,142.2,142.17,5.80111996]
[1764242180424,2.12736233,142.2,142.16,7.03413756]
[1764242180425,2.83736233,142.2,142.16,7.03413756]
[1764242180598,0.71,142.19,142.16,7.03413756]
[1764242182613,0.71,142.19,142.16,24.61995635]
[1764242182923,0.71,142.19,142.16,26.74731868]
[1764242183239,0.71,142.19,142.16,19.71318112]
[1764242183525,0.71,142.19,142.17,2.12736233]
[1764242184641,0.71,142.19,142.18,7.03333802]
[1764242185326,0.71,142.21,142.18,26.7440454]
[1764242185530,0.71,142.21,142.2,2.12736233]
[1764242186625,0.71,142.21,142.2,9.15971113]
[1764242186821,0.71,142.23,142.2,9.15971113]
[1764242187210,0.71,142.23,142.2,7.0323488]
[1764242188237,0.71,142.23,142.2,24.61322081]
[1764242189113,0.71,142.23,142.2,23.26454547]
[1764242190623,2.83736233,142.23,142.2,23.26454547]
[1764242190822,2.83736233,142.23,142.2,17.58087201]
[1764242191034,0.71,142.22,142.2,17.58087201]
[1764242191636,2.83736233,142.22,142.19,7.03284337]
[1764242191941,2.83736233,142.22,142.18,7.03315155]
[1764242191942,2.12736233,142.2,142.18,7.03315155]
[1764242192350,0.71,142.19,142.17,16.308864]
[1764242194437,0.71,142.19,142.18,7.03315155]
[1764242195323,0.71,142.19,142.17,16.308864]
[1764242196526,0.71,142.19,142.18,7.03315155]
[1764242197826,0.71,142.19,142.17,7.03359748]
[1764242198421,0.71,142.19,142.17,5.68928383]
[1764242198820,0.71,142.19,142.16,24.6195461]
[1764242201341,0.71,142.19,142.16,23.16047981]
[1764242204227,0.71,142.19,142.16,25.28784214]
[1764242204428,0.71,142.19,142.16,23.48300934]
[1764242205832,0.71,142.19,142.16,21.35564701]
[1764242206739,0.71,142.19,142.16,7.03432751]
[1764242206943,2.83736233,142.19,142.16,7.03432751]
[1764242207468,0.72,142.18,142.16,4.85967975]
[1764242207640,2.84736233,142.18,142.14,17.5874659]
[1764242208129,0.72,142.17,142.14,17.5874659]
[1764242208831,0.72,142.17,142.14,24.62278319]
[1764242209531,0.72,142.17,142.14,26.75014552]
[1764242210555,0.72,142.17,142.14,25.07003801]
[1764242213662,0.72,142.17,142.14,14.02178746]
[1764242216737,2.84736233,142.17,142.12,16.308864]
[1764242217150,2.84736233,142.16,142.12,16.308864]
[1764242217342,0.72,142.16,142.12,16.308864]
[1764242217546,0.72,142.15,142.12,16.308864]
[1764242217951,0.72,142.15,142.13,7.03581228]
[1764242218939,0.72,142.15,142.12,33.89894864]
[1764242218940,2.84736233,142.15,142.12,7.03618215]
[1764242219141,2.12736233,142.14,142.11,7.03665246]
[1764242219475,2.84736233,142.14,142.09,23.34619662]
[1764242219767,0.72,142.13,142.08,0.2]
[1764242220835,0.72,142.13,142.09,9.16469495]
[1764242221056,0.72,142.13,142.1,2.12736233]
[1764242221447,0.72,142.13,142.09,26.75917732]
[1764242221646,0.72,142.13,142.09,24.63181499]
[1764242221960,0.72,142.13,142.1,2.12736233]
[1764242222760,0.72,142.13,142.11,5.54036827]
[1764242225743,0.72,142.13,142.11,3.54417279]
[1764242225948,0.72,142.13,142.1,19.72002108]
[1764242227271,0.72,142.13,142.11,7.03680247]
[1764242228570,0.72,142.13,142.1,20.92188212]
[1764242228946,0.72,142.13,142.1,18.83531]
[1764242230482,0.72,142.13,142.1,25.87260767]
[1764242231868,0.72,142.13,142.1,17.06182563]
[1764242232862,0.72,142.13,142.1,33.37068963]
[1764242233172,0.72,142.14,142.11,3.32922337]
[1764242234475,0.72,142.14,142.1,37.07876393]
[1764242234655,0.72,142.14,142.11,3.32922337]
[1764242236374,0.72,142.14,142.12,7.03630734]
[1764242237576,0.72,142.14,142.11,24.62792497]
[1764242237969,0.72,142.14,142.11,23.09606456]
[1764242239778,0.72,142.14,142.11,26.42528793]
[1764242241168,0.72,142.14,142.11,24.48048442]
[1764242241575,0.72,142.14,142.12,3.32922337]
[1764242242870,0.72,142.14,142.11,21.15126105]
[1764242243062,0.72,142.14,142.12,3.32922337]
[1764242244385,0.72,142.14,142.12,0.79824088]
[1764242244689,6.42922337,142.18,142.13,3.32922337]
[1764242244899,0.72,142.16,142.14,7.03531729]
[1764242245569,0.72,142.16,142.14,27.95283389]
[1764242247585,0.72,142.16,142.14,26.30364063]
[1764242248488,0.72,142.17,142.15,3.32922337]
[1764242249572,0.72,142.17,142.16,7.03432751]
[1764242249867,0.72,142.19,142.16,26.67241488]
[1764242250189,0.72,142.18,142.16,7.03432751]
[1764242250586,0.72,142.18,142.16,5.85410654]
[1764242251377,0.72,142.18,142.15,7.03482237]
[1764242251598,0.72,142.18,142.15,24.62187829]
[1764242252494,0.72,142.18,142.15,7.03482237]
[1764242252700,4.04922337,142.18,142.15,7.03482237]
[1764242253189,0.72,142.17,142.15,7.03482237]
[1764242253390,0.72,142.17,142.14,24.62361052]
[1764242253700,0.72,142.17,142.14,17.58829323]
[1764242254673,0.72,142.17,142.14,24.62361052]
[1764242256674,0.72,142.17,142.14,22.71652717]
[1764242259302,0.72,142.17,142.14,26.04575054]
[1764242259605,0.72,142.17,142.14,24.00820358]
[1764242259905,0.72,142.17,142.15,3.32922337]
[1764242260209,0.67,142.19,142.16,3.32922337]
[1764242260384,0.67,142.19,142.18,3.32922337]
[1764242260783,0.67,142.19,142.17,3.32922337]
[1764242261099,3.1,142.22,142.18,3.32922337]
[1764242261294,0.67,142.21,142.17,16.308864]
[1764242261613,0.67,142.21,142.17,19.63808737]
[1764242262103,0.67,142.21,142.18,7.03333802]
[1764242262305,0.67,142.21,142.18,24.61668307]
[1764242262903,0.67,142.21,142.18,22.93783966]
[1764242263476,3.99922337,142.21,142.18,5.35449461]
[1764242263888,0.67,142.2,142.18,5.35449461]
[1764242264087,0.67,142.2,142.16,24.61943137]
[1764242264508,3.99922337,142.2,142.16,24.61943137]
[1764242265008,0.67,142.19,142.16,24.61943137]
[1764242265910,0.67,142.19,142.16,26.59118542]
[1764242267602,0.67,142.19,142.16,23.26196205]
[1764242268817,0.67,142.19,142.16,21.32313286]
[1764242269520,0.67,142.19,142.16,24.65235623]
[1764242272011,0.67,142.19,142.16,10.36355088]
[1764242273487,0.67,142.19,142.16,27.94865474]
[1764242274891,0.67,142.19,142.16,20.91432723]
[1764242276522,0.67,142.19,142.16,27.94865474]
[1764242277592,0.67,142.19,142.16,24.61943137]
[1764242277920,0.67,142.19,142.16,22.2033195]
[1764242279722,0.67,142.19,142.16,25.53254287]
[1764242281025,0.67,142.19,142.16,24.09494896]
[1764242282114,0.67,142.19,142.16,20.76572559]
[1764242284027,0.67,142.19,142.16,7.03432751]
[1764242285519,0.67,142.19,142.16,27.94865474]
[1764242287131,0.67,142.19,142.16,20.91432723]
[1764242288002,0.67,142.22,142.18,3.32922337]
[1764242288203,0.67,142.22,142.19,19.63808737]
[1764242288420,0.67,142.21,142.19,19.63808737]
[1764242288624,0.67,142.21,142.19,18.43687405]
[1764242289007,0.67,142.22,142.2,2.12801005]
[1764242289603,0.67,142.22,142.19,18.43687405]
[1764242290024,0.67,142.22,142.2,7.0323488]
[1764242290218,0.67,142.22,142.2,5.49513847]
[1764242293327,0.67,142.22,142.19,17.58121628]
[1764242293707,2.79801005,142.22,142.19,17.58121628]
[1764242294121,0.7,142.21,142.19,17.58121628]
[1764242296516,0.7,142.21,142.19,15.18067734]
[1764242296845,0.7,142.21,142.18,7.03333802]
[1764242297047,2.82801005,142.21,142.18,7.03333802]
[1764242297416,0.7,142.2,142.18,7.03333802]
[1764242299511,0.7,142.2,142.17,43.05187174]
[1764242300616,0.7,142.2,142.18,7.03333802]
[1764242302507,0.7,142.2,142.17,43.05187174]
[1764242303412,0.7,142.22,142.19,2.12801005]
[1764242305040,0.7,142.22,142.19,8.80994492]
[1764242305435,0.7,142.22,142.2,7.0323488]
[1764242305618,0.7,142.22,142.2,5.29114879]
[1764242307260,0.7,142.22,142.2,25.00003085]
[1764242307441,0.7,142.22,142.2,22.8720208]
[1764242307646,0.7,142.23,142.2,22.8720208]
[1764242308558,0.7,142.23,142.2,17.58087201]
[1764242310433,0.7,142.23,142.2,24.61322081]
[1764242310840,2.82801005,142.23,142.2,24.61322081]
[1764242311278,0.7,142.22,142.2,24.61322081]
[1764242311657,0.7,142.22,142.2,22.43703896]
[1764242312889,0.7,142.22,142.2,15.40469016]
[1764242313190,0.7,142.22,142.19,7.03284337]
[1764242313392,2.82801005,142.22,142.19,7.03284337]
[1764242313763,0.7,142.21,142.19,7.03284337]
[1764242314666,0.7,142.21,142.18,17.58265047]
[1764242315759,0.7,142.21,142.18,24.61598849]
[1764242317287,2.82801005,142.21,142.18,24.61598849]
[1764242317762,0.7,142.2,142.18,23.18029446]
[1764242320998,0.7,142.2,142.18,22.10820224]
[1764242321898,0.7,142.2,142.16,7.0339032]
[1764242321899,2.12801005,142.19,142.16,7.0339032]
[1764242322197,2.12801005,142.18,142.16,7.0339032]
[1764242322364,2.12801005,142.18,142.15,7.03476045]
[1764242322559,0.68,142.17,142.15,7.03476045]
[1764242322972,2.80801005,142.17,142.14,17.58782606]
[1764242323293,0.68,142.16,142.14,17.58782606]
[1764242324000,0.68,142.16,142.14,14.7320703]
[1764242325494,0.68,142.16,142.13,7.03581228]
[1764242325670,2.80801005,142.16,142.13,7.03581228]
[1764242326082,0.68,142.15,142.13,7.03581228]
[1764242327299,0.68,142.15,142.12,42.70929714]
[1764242328589,0.68,142.15,142.13,7.03581228]
[1764242328983,0.68,142.16,142.13,24.62534299]
[1764242329306,0.68,142.15,142.13,24.62534299]
[1764242330184,0.68,142.15,142.13,17.58953071]
[1764242331577,0.68,142.15,142.13,24.62534299]
[1764242333497,0.68,142.15,142.13,23.00020274]
[1764242336502,0.68,142.15,142.13,21.93374053]
[1764242339601,0.68,142.15,142.13,20.28624954]
[1764242342405,0.68,142.18,142.14,10.93795497]
[1764242342698,0.68,142.19,142.16,10.93795497]
[1764242343006,3.78,142.23,142.18,10.93795497]
[1764242343300,0.68,142.22,142.18,8.80994492]
[1764242343482,0.68,142.22,142.18,2.12801005]
[1764242343680,0.68,142.22,142.19,2.12801005]
[1764242344689,0.68,142.22,142.2,7.0323488]
[1764242346089,0.68,142.22,142.19,19.70945928]
[1764242346399,0.68,142.22,142.19,17.58144923]
[1764242347603,2.12801005,142.2,142.18,3.78]
[1764242347904,0.68,142.19,142.18,10.81311664]
[1764242348083,0.68,142.19,142.18,7.03311664]
[1764242349090,0.68,142.19,142.16,28.52326515]
[1764242350404,0.68,142.19,142.17,7.03383273]
[1764242352207,0.68,142.19,142.16,29.72152472]
[1764242352508,0.68,142.19,142.17,3.32626962]
[1764242353394,0.68,142.19,142.17,10.36010235]
[1764242353588,0.68,142.19,142.17,7.03383273]
[1764242355309,0.68,142.19,142.17,5.60587746]
[1764242358514,0.68,142.19,142.16,29.72152472]
[1764242359005,0.68,142.19,142.16,20.9115798]
[1764242359189,0.68,142.19,142.16,17.58531018]
[1764242359391,0.68,142.19,142.17,7.03383273]
[1764242359791,0.68,142.19,142.16,27.94590731]
[1764242360216,0.68,142.19,142.16,7.03432751]
[1764242360400,7.10626962,142.19,142.16,7.03432751]
[1764242360913,0.71,142.18,142.16,7.03432751]
[1764242361111,3.32626962,142.17,142.13,16.308864]
[1764242361309,3.32626962,142.15,142.07,8.80994492]
[1764242361507,3.32626962,142.15,142.09,3.32626962]
[1764242361817,0.71,142.14,142.11,16.308864]
[1764242362501,0.71,142.14,142.12,7.03630734]
[1764242363013,4.03626962,142.14,142.12,7.03630734]
[1764242363519,0.71,142.13,142.11,7.0365838]
[1764242364115,3.32626962,142.12,142.1,7.03709623]
[1764242364510,0.71,142.11,142.08,17.79496921]
[1764242366190,0.71,142.11,142.08,21.12123883]
[1764242366422,0.71,142.11,142.09,7.03779294]
[1764242367613,0.71,142.11,142.08,21.12123883]
[1764242369408,0.71,142.11,142.09,7.03779294]
[1764242370620,0.71,142.11,142.08,21.12123883]
[1764242372417,0.71,142.11,142.09,7.03779294]
[1764242373823,0.71,142.11,142.08,21.12123883]
[1764242374027,4.03626962,142.11,142.08,0.2]
[1764242374206,3.32626962,142.11,142.08,0.2]
[1764242374409,0.71,142.12,142.1,3.32626962]
[1764242375220,0.71,142.12,142.09,3.32626962]
[1764242375721,0.71,142.12,142.1,3.32626962]
[1764242375915,0.71,142.12,142.08,0.2]
[1764242376118,4.03626962,142.12,142.08,7.23811043]
[1764242376629,0.71,142.11,142.08,7.23811043]
[1764242376816,0.71,142.11,142.08,6.23313905]
[1764242378813,4.03626962,142.11,142.08,6.23313905]
[1764242379803,4.03626962,142.11,142.07,16.308864]
[1764242380003,0.7,142.1,142.07,16.308864]
[1764242381013,0.7,142.1,142.07,19.63513362]
[1764242381226,0.7,142.1,142.08,7.03811043]
[1764242382839,0.7,142.1,142.08,5.72162564]
[1764242386006,0.7,142.1,142.07,37.23165353]
[1764242387218,0.7,142.1,142.08,7.03811043]
[1764242388911,0.7,142.1,142.07,37.23165353]
[1764242390237,0.7,142.1,142.08,7.03811043]
[1764242392037,0.7,142.1,142.07,37.23165353]
[1764242393228,0.7,142.1,142.08,7.03811043]
[1764242395046,0.7,142.1,142.08,5.61917483]
[1764242398250,0.7,142.1,142.07,37.23165353]
[1764242399443,0.7,142.1,142.08,7.03811043]
[1764242401150,0.7,142.1,142.08,5.53943718]
[1764242402173,3.8,142.1,142.08,5.53943718]
[1764242402530,0.7,142.09,142.08,5.53943718]
[1764242403947,0.7,142.09,142.07,23.34745879]
[1764242404469,0.7,142.09,142.07,20.36428161]
[1764242405669,3.32626962,142.08,142.04,3.32626962]
[1764242405854,3.32626962,142.07,142.03,7.04076603]
[1764242406033,3.1,142.06,142.03,7.04076603]
[1764242406228,3.8,142.06,142.03,7.04076603]
[1764242406536,0.7,142.05,142.03,7.04076603]
[1764242406750,0.7,142.07,142.04,3.32626962]
[1764242406960,0.7,142.07,142.05,3.32626962]
[1764242407336,0.7,142.07,142.03,27.96895073]
[1764242407656,0.7,142.07,142.03,24.64268111]
[1764242407950,0.7,142.07,142.03,27.96895073]
[1764242410342,0.7,142.07,142.03,26.39033297]
[1764242410553,0.7,142.07,142.03,25.19690724]
[1764242410937,2.13284389,142.06,142.03,5.46214827]
[1764242411462,3.76,142.05,142.03,5.46214827]
[1764242411954,0.66,142.04,142.03,5.46214827]
[1764242412658,0.66,142.05,142.03,5.46214827]
[1764242412856,3.1,142.06,142.03,5.46214827]
[1764242413063,0.66,142.04,142.03,5.46214827]
[1764242413358,0.66,142.04,142.02,19.9355062]
[1764242414752,0.66,142.04,142.03,7.04076603]
[1764242415845,0.66,142.04,142.02,7.24110242]
[1764242416764,0.66,142.04,142.01,0.2]
[1764242417566,2.79284389,142.04,142.01,0.2]
[1764242417766,0.66,142.04,142.01,0.2]
[1764242418063,0.66,142.03,142.01,0.2]
[1764242418456,0.66,142.03,142.01,7.24149398]
[1764242419745,0.66,142.03,141.99,19.93915574]
[1764242421666,0.66,142.03,142.0,7.04225352]
[1764242421963,3.1,142.04,142.0,26.78073121]
[1764242422167,3.76,142.04,142.01,2.13284389]
[1764242422341,3.76,142.04,142.0,26.78073121]
[1764242422542,0.66,142.03,142.0,26.78073121]
[1764242422743,0.66,142.03,142.0,25.62009717]
[1764242425864,0.66,142.03,142.0,19.73847769]
[1764242427449,0.66,142.03,142.0,26.78073121]
[1764242428866,0.66,142.03,142.0,24.61392088]
[1764242432073,0.66,142.03,142.0,9.17509741]
[1764242433177,0.66,142.03,142.0,26.78073121]
[1764242435076,0.66,142.03,142.0,26.2806106]
[1764242437056,0.66,142.05,142.01,2.13284389]
[1764242437279,0.66,142.04,142.01,2.13284389]
[1764242439781,0.66,142.04,142.02,7.04126179]
[1764242441077,0.66,142.04,142.01,17.60359238]
[1764242443086,0.66,142.04,142.01,24.64535]
[1764242444185,0.66,142.04,142.01,22.5606631]
[1764242444389,0.66,142.04,142.01,24.69350699]
[1764242444692,0.66,142.04,142.01,17.65174937]
[1764242447293,0.66,142.04,142.01,16.20622436]
[1764242450370,0.66,142.04,142.01,2.13284389]
[1764242451601,0.66,142.04,142.01,26.77819389]
[1764242453481,0.66,142.04,142.01,24.64535]
[1764242453691,0.66,142.04,142.01,26.77819389]
[1764242454692,0.66,142.04,142.01,17.60359238]
[1764242454890,0.66,142.04,142.01,19.73643627]
[1764242456398,0.66,142.04,142.01,17.55414204]
[1764242457200,0.66,142.04,142.01,15.42129815]
[1764242459495,0.66,142.04,142.0,2.13284389]
[1764242460072,0.66,142.04,142.01,2.13284389]
[1764242460574,0.66,142.04,142.01,19.73643627]
[1764242461219,0.66,142.04,142.01,17.60359238]
[1764242461881,0.66,142.04,142.01,24.64535]
[1764242462512,0.66,142.04,142.01,21.86449321]
[1764242464803,0.66,142.04,142.01,23.9973371]
[1764242465625,0.66,142.04,142.01,9.17460151]
[1764242465816,0.66,142.04,142.01,7.04175762]
[1764242466695,0.66,142.04,142.01,24.64535]
[1764242468621,0.66,142.04,142.01,17.60359238]
[1764242469711,0.66,142.04,142.01,24.64535]
[1764242471723,0.66,142.04,142.01,23.27265931]
[1764242474802,0.66,142.04,142.01,14.23406888]
[1764242476299,0.66,142.04,142.01,21.2758265]
[1764242476500,3.99379102,142.04,142.01,7.04175762]
[1764242476916,0.68,142.03,142.01,7.04175762]
[1764242477829,0.68,142.03,141.99,0.2]
[1764242478028,0.68,142.03,141.99,3.53379102]
[1764242478831,0.68,142.03,142.0,24.64788732]
[1764242480227,0.68,142.03,142.0,42.06058337]
[1764242480819,0.68,142.03,142.0,24.64788732]
[1764242481025,0.68,142.03,142.0,44.31903007]
[1764242482325,0.68,142.03,142.0,26.71339627]
[1764242482512,0.68,142.03,142.0,5.9669092]
[1764242482513,4.01379102,142.03,142.0,5.9669092]
[1764242482711,24.76027809,142.03,142.0,5.9669092]
[1764242482934,0.68,142.02,142.0,5.9669092]
[1764242484039,0.68,142.02,141.99,42.29303832]
[1764242484946,6.43379102,142.01,141.99,0.2]
[1764242485324,17.188864,142.0,141.99,0.2]
[1764242485523,0.68,142.0,141.99,0.2]
[1764242487118,3.33379102,141.99,141.96,0.2]
[1764242487319,3.33379102,141.97,141.96,0.2]
[1764242487714,4.01379102,141.97,141.96,0.2]
[1764242488129,9.93536192,141.97,141.96,0.2]
[1764242488343,13.03536192,141.97,141.96,0.2]
[1764242488929,9.7015709,141.97,141.96,0.2]
[1764242489127,13.03536192,141.97,141.96,0.2]
[1764242489737,20.07910355,141.97,141.96,0.2]
[1764242490116,0.68,141.96,141.91,38.5809238]
[1764242490334,3.33379102,141.95,141.91,38.5809238]
[1764242490524,3.1,141.94,141.91,38.5809238]
[1764242490737,3.78,141.94,141.91,41.91471482]
[1764242491439,3.78,141.94,141.92,7.04622322]
[1764242492915,16.06531253,141.94,141.92,7.04622322]
[1764242493120,3.1,141.95,141.91,59.53099747]
[1764242493322,19.84531253,141.95,141.91,59.53099747]
[1764242493720,0.68,141.94,141.91,38.5809238]
[1764242494123,0.68,141.94,141.91,41.91471482]
[1764242494548,3.33379102,141.93,141.91,38.5809238]
[1764242494720,0.68,141.94,141.91,41.71568421]
[1764242495346,0.68,141.94,141.91,62.88045192]
[1764242496141,0.68,141.94,141.91,60.80937039]
[1764242496935,0.68,141.94,141.91,78.42616976]
[1764242499236,0.68,141.94,141.91,75.67941709]
[1764242501956,21.16476771,141.95,141.92,3.33379102]
[1764242502276,3.8,141.96,141.93,1.45267149]
[1764242502428,3.8,141.96,141.93,24.49706568]
[1764242502629,3.1,141.97,141.94,3.33379102]
[1764242502846,3.8,141.97,141.94,3.33379102]
[1764242503037,3.8,141.97,141.95,3.33379102]
[1764242504029,3.8,141.97,141.96,7.04423781]
[1764242505066,3.8,141.97,141.96,14.08847562]
[1764242505442,3.1,141.98,141.96,7.04423781]
[1764242505648,3.8,141.98,141.96,7.04423781]
[1764242505863,0.7,141.97,141.96,7.04423781]
[1764242507265,0.7,141.97,141.95,7.04473406]
[1764242507574,0.7,141.97,141.95,24.65721421]
[1764242508368,0.7,141.97,141.95,17.61248015]
[1764242509159,4.03379102,141.97,141.95,17.61248015]
[1764242509339,3.33379102,141.96,141.91,38.66126581]
[1764242509538,4.03379102,141.96,141.91,38.66126581]
[1764242509856,3.8,141.95,141.92,24.66109573]
[1764242510060,3.8,141.95,141.92,45.82287755]
[1764242510265,0.7,141.94,141.92,24.66109573]
[1764242510442,0.7,141.94,141.93,21.16178182]
[1764242511155,0.7,141.94,141.93,28.20750858]
[1764242511558,0.7,141.94,141.93,26.66530157]
[1764242514268,0.7,141.94,141.93,7.04572676]
[1764242514651,0.7,141.94,141.93,6.01050141]
[1764242517662,0.7,141.94,141.92,20.94866353]
[1764242519560,0.7,141.94,141.93,7.04572676]
[1764242520668,0.7,141.94,141.92,20.94866353]
[1764242520848,0.7,141.96,141.93,3.33379102]
[1764242521367,0.7,141.96,141.93,9.76758204]
[1764242521753,0.7,141.96,141.93,3.33379102]
[1764242521959,0.7,141.96,141.94,9.53379102]
[1764242522368,7.13379102,141.97,141.94,12.86758204]
[1764242522755,0.7,141.96,141.95,7.04473406]
[1764242522950,0.7,141.96,141.95,17.18764825]
[1764242523661,0.7,141.96,141.95,15.78548208]
[1764242526373,0.7,141.97,141.95,15.78548208]
[1764242526978,0.7,141.97,141.95,10.14291419]
[1764242528677,0.7,141.97,141.95,17.18764825]
[1764242529776,0.7,141.97,141.95,14.96986286]
[1764242532858,0.7,141.97,141.95,13.85694731]
[1764242534578,2.83580794,141.97,141.94,7.04498147]
[1764242534960,18.30431691,141.96,141.94,7.04498147]
[1764242535162,0.69,141.96,141.94,7.04498147]
[1764242535480,0.69,141.95,141.94,7.04498147]
[1764242535985,0.69,141.95,141.93,32.99303904]
[1764242537481,0.69,141.95,141.94,7.04498147]
[1764242538989,0.69,141.95,141.94,5.54952862]
[1764242540289,5.92580794,141.95,141.92,7.04622322]
[1764242540597,2.13580794,141.93,141.91,33.56411088]
[1764242540971,0.69,141.92,141.91,33.56411088]
[1764242541975,5.92580794,141.92,141.91,24.71150448]
[1764242545300,5.92580794,141.92,141.91,22.07862915]
[1764242548198,5.92580794,141.92,141.91,19.98657592]
[1764242551195,5.92580794,141.92,141.91,17.6639615]
[1764242554278,5.92580794,141.92,141.91,16.31222279]
[1764242555050,12.97203116,141.92,141.91,16.31222279]
[1764242555871,9.87203116,141.92,141.91,16.31222279]
[1764242556082,12.97203116,141.92,141.91,16.31222279]
[1764242556298,7.73622322,141.92,141.91,16.31222279]
[1764242556489,12.97203116,141.92,141.91,16.31222279]
[1764242557098,34.14576161,141.92,141.91,16.31222279]
[1764242557297,34.14576161,141.92,141.91,15.12328641]
[1764242557497,12.97203116,141.92,141.91,15.12328641]
[1764242557799,34.14576161,141.92,141.91,15.12328641]
[1764242557973,12.97203116,141.92,141.91,15.12328641]
[1764242560288,34.14576161,141.92,141.91,15.12328641]
[1764242560589,9.87203116,141.92,141.91,13.28806145]
[1764242560904,12.97203116,141.92,141.91,13.28806145]
[1764242562113,0.69,141.92,141.91,13.28806145]
[1764242562410,5.92580794,141.92,141.91,13.28806145]
[1764242562708,12.97203116,141.92,141.91,13.28806145]
[1764242562911,29.28089516,141.92,141.91,13.28806145]
[1764242563425,29.28089516,141.92,141.91,11.64340929]
[1764242566513,26.18089516,141.92,141.91,10.323262]
[1764242566697,29.28089516,141.92,141.91,10.323262]
[1764242567609,19.14467194,141.92,141.91,10.323262]
[1764242567928,22.24467194,141.92,141.91,10.323262]
[1764242569196,29.29089516,141.92,141.91,10.323262]
[1764242569718,29.29089516,141.92,141.91,8.41449524]
[1764242571314,2.83580794,141.92,141.91,8.41449524]
[1764242571497,5.93580794,141.92,141.91,8.41449524]
[1764242572589,5.93580794,141.92,141.91,5.9348679]
[1764242573814,2.13580794,141.93,141.91,5.9348679]
[1764242574018,3.1,141.92,141.91,12.98149043]
[1764242575807,3.1,141.92,141.91,10.64195391]
[1764242578635,0.7,141.93,141.91,10.64195391]
[1764242578923,3.1,141.92,141.91,9.10768092]
[1764242579310,2.13580794,141.94,141.91,9.10768092]
[1764242579505,3.1,141.93,141.91,9.10768092]
[1764242579705,3.8,141.93,141.91,9.10768092]
[1764242580233,2.13580794,141.94,141.91,9.10768092]
[1764242580402,3.1,141.93,141.91,9.10768092]
[1764242581212,16.308864,141.96,141.91,9.10768092]
[1764242581213,23.35332118,141.96,141.91,9.10768092]
[1764242581423,5.93580794,141.95,141.91,9.10768092]
[1764242581938,0.7,141.94,141.91,7.78724426]
[1764242582831,5.23580794,141.95,141.91,25.40404363]
[1764242583007,5.93580794,141.95,141.91,25.40404363]
[1764242583207,0.7,141.95,141.91,25.40404363]
[1764242583431,3.1,141.94,141.91,25.40404363]
[1764242583834,3.8,141.94,141.91,25.40404363]
[1764242584634,2.83580794,141.95,141.91,25.40404363]
[1764242584941,3.8,141.94,141.91,17.61679937]
[1764242585246,3.1,141.94,141.91,19.75260731]
[1764242585443,3.1,141.94,141.91,17.61679937]
[1764242586041,3.8,141.94,141.91,24.6634219]
[1764242588026,3.8,141.94,141.91,23.18073325]
[1764242588441,0.7,141.94,141.91,23.18073325]
[1764242588646,3.8,141.94,141.91,23.18073325]
[1764242589140,2.13580794,141.96,141.91,25.31654119]
[1764242589340,3.8,141.96,141.92,2.13580794]
[1764242589543,3.8,141.96,141.93,7.04572676]
[1764242589724,3.8,141.96,141.93,24.66004367]
[1764242590231,0.69,141.97,141.93,24.66004367]
[1764242590433,3.1,141.96,141.93,24.66004367]
[1764242591045,3.1,141.96,141.93,17.61431691]
[1764242591346,3.1,141.96,141.93,19.75012485]
[1764242592440,3.79,141.96,141.93,24.66004367]
[1764242593447,3.79,141.98,141.93,27.99741189]
[1764242593632,0.69,141.97,141.93,27.99741189]
[1764242594032,3.33736822,141.96,141.91,20.71679937]
[1764242594236,3.33736822,141.96,141.91,17.61679937]
[1764242594421,0.69,141.95,141.91,20.95416759]